[Event "Early-Titled-Tuesday-Blitz-January-23-2024"]
[Site "Chess.com"]
[Date "2024.01.23"]
[Round "7"]
[White "Alenzer"]
[Black "Pastore1978"]
[Result "0-1"]
[WhiteElo "2160"]
[BlackElo "2284"]
[TimeControl "180+1"]
[EndTime "9:18:45 PST"]
[Termination "Pastore1978 won on time"]

1. e4 {[%clk 0:03:00.9]} 1... e6 {[%clk 0:03:00]} 2. d4 {[%clk 0:03:00.2]} 2...
d5 {[%clk 0:03:00.6]} 3. exd5 {[%clk 0:03:00.1]} 3... exd5 {[%clk 0:03:01.5]} 4.
c4 {[%clk 0:03:00.5]} 4... Bb4+ {[%clk 0:03:00.4]} 5. Nc3 {[%clk 0:03:00.2]}
5... Nf6 {[%clk 0:02:58.5]} 6. Nf3 {[%clk 0:02:59.6]} 6... O-O {[%clk
0:02:58.4]} 7. Bd3 {[%clk 0:02:59]} 7... dxc4 {[%clk 0:02:58.5]} 8. Bxc4 {[%clk
0:02:59.1]} 8... Bg4 {[%clk 0:02:56.9]} 9. O-O {[%clk 0:02:49]} 9... Nbd7 {[%clk
0:02:57.1]} 10. h3 {[%clk 0:02:45.1]} 10... Bh5 {[%clk 0:02:56.8]} 11. g4 {[%clk
0:02:45.2]} 11... Bg6 {[%clk 0:02:56.6]} 12. Ne5 {[%clk 0:02:44.4]} 12... Nb6
{[%clk 0:01:54.5]} 13. Bb3 {[%clk 0:02:30.3]} 13... a5 {[%clk 0:01:14.2]} 14. f4
{[%clk 0:02:13.4]} 14... Be4 {[%clk 0:01:04.6]} 15. Nxe4 {[%clk 0:01:29.4]}
15... Nxe4 {[%clk 0:01:05.5]} 16. Bc2 {[%clk 0:01:29.5]} 16... Ng3 {[%clk
0:00:53.2]} 17. Rf3 {[%clk 0:01:23.3]} 17... Qxd4+ {[%clk 0:00:52]} 18. Kg2
{[%clk 0:01:03.8]} 18... Qxd1 {[%clk 0:00:48.8]} 19. Bxd1 {[%clk 0:01:04.2]}
19... Ne4 {[%clk 0:00:49.6]} 20. a3 {[%clk 0:00:59.7]} 20... Bd6 {[%clk
0:00:45.2]} 21. Bc2 {[%clk 0:00:50.2]} 21... Nc5 {[%clk 0:00:41.1]} 22. Be3
{[%clk 0:00:44.4]} 22... a4 {[%clk 0:00:33]} 23. Rd1 {[%clk 0:00:38]} 23... Ncd7
{[%clk 0:00:31.2]} 24. Nxd7 {[%clk 0:00:31.2]} 24... Nxd7 {[%clk 0:00:32.1]} 25.
Bf5 {[%clk 0:00:30]} 25... Nc5 {[%clk 0:00:26.1]} 26. Bxc5 {[%clk 0:00:26.9]}
26... Bxc5 {[%clk 0:00:27]} 27. Rd7 {[%clk 0:00:25.8]} 27... Bd6 {[%clk
0:00:27.3]} 28. Be4 {[%clk 0:00:17.1]} 28... Rfb8 {[%clk 0:00:26.9]} 29. Bd5
{[%clk 0:00:14.4]} 29... Rf8 {[%clk 0:00:22.5]} 30. f5 {[%clk 0:00:13.7]} 30...
Rab8 {[%clk 0:00:21.6]} 31. g5 {[%clk 0:00:12.4]} 31... b6 {[%clk 0:00:14.4]}
32. g6 {[%clk 0:00:12.1]} 32... Rbd8 {[%clk 0:00:10]} 33. Rxf7 {[%clk
0:00:10.7]} 33... Rxf7 {[%clk 0:00:09.3]} 34. Bxf7+ {[%clk 0:00:07.7]} 34... Kf8
{[%clk 0:00:09.7]} 35. Be6 {[%clk 0:00:06.9]} 35... h6 {[%clk 0:00:09.8]} 36. h4
{[%clk 0:00:06.6]} 36... Ke7 {[%clk 0:00:10.1]} 37. Bd5 {[%clk 0:00:06.5]} 37...
Kf6 {[%clk 0:00:10.3]} 38. Be4 {[%clk 0:00:06.3]} 38... Be5 {[%clk 0:00:09.8]}
39. Bc2 {[%clk 0:00:06]} 39... Rd2+ {[%clk 0:00:08.2]} 40. Rf2 {[%clk
0:00:05.5]} 40... Rd4 {[%clk 0:00:08.3]} 41. Re2 {[%clk 0:00:04]} 41... Rxh4
{[%clk 0:00:06.5]} 42. Rf2 {[%clk 0:00:03.7]} 42... Rh2+ {[%clk 0:00:05.8]} 43.
Kg1 {[%clk 0:00:03.7]} 43... Rxf2 {[%clk 0:00:04.6]} 44. Kxf2 {[%clk 0:00:04.2]}
44... Bxb2 {[%clk 0:00:05.3]} 45. Bxa4 {[%clk 0:00:03.6]} 45... Bxa3 {[%clk
0:00:05.8]} 46. Bc2 {[%clk 0:00:03.6]} 46... Bd6 {[%clk 0:00:05.6]} 47. Kf3
{[%clk 0:00:03.9]} 47... Ke5 {[%clk 0:00:04.5]} 48. Kg4 {[%clk 0:00:03.8]} 48...
Be7 {[%clk 0:00:04.7]} 49. Bd3 {[%clk 0:00:03.5]} 49... Bf6 {[%clk 0:00:05.2]}
50. Bc2 {[%clk 0:00:03.8]} 50... Kd4 {[%clk 0:00:05.3]} 51. Bb3 {[%clk
0:00:04.1]} 51... c5 {[%clk 0:00:05.5]} 52. Ba4 {[%clk 0:00:02.4]} 52... c4
{[%clk 0:00:05.8]} 53. Bc2 {[%clk 0:00:02.4]} 53... c3 {[%clk 0:00:06.2]} 54.
Kf3 {[%clk 0:00:02.6]} 54... b5 {[%clk 0:00:04]} 55. Ke2 {[%clk 0:00:02.4]}
55... b4 {[%clk 0:00:04]} 56. Kd1 {[%clk 0:00:02.3]} 56... Kc4 {[%clk
0:00:04.2]} 57. Be4 {[%clk 0:00:01.5]} 57... b3 {[%clk 0:00:04]} 58. Kc1 {[%clk
0:00:01.8]} 58... c2 {[%clk 0:00:02.3]} 0-1

[Event "Early-Titled-Tuesday-Blitz-January-23-2024"]
[Site "Chess.com"]
[Date "2024.01.23"]
[Round "7"]
[White "KhazhatulyAlikhan"]
[Black "FoxOnTheRun97"]
[Result "0-1"]
[WhiteElo "2347"]
[BlackElo "2598"]
[TimeControl "180+1"]
[EndTime "9:18:49 PST"]
[Termination "FoxOnTheRun97 won on time"]

1. e4 {[%clk 0:03:00.9]} 1... e6 {[%clk 0:03:00.2]} 2. d4 {[%clk 0:03:00.7]}
2... d5 {[%clk 0:03:01.1]} 3. Nd2 {[%clk 0:03:01.1]} 3... Nf6 {[%clk 0:03:01]}
4. e5 {[%clk 0:03:01.4]} 4... Nfd7 {[%clk 0:03:01.2]} 5. Bd3 {[%clk 0:03:02.1]}
5... c5 {[%clk 0:03:01.6]} 6. c3 {[%clk 0:03:02.8]} 6... Nc6 {[%clk 0:03:01.9]}
7. Ne2 {[%clk 0:03:03.4]} 7... cxd4 {[%clk 0:02:58.7]} 8. cxd4 {[%clk
0:03:03.3]} 8... f6 {[%clk 0:02:58.2]} 9. exf6 {[%clk 0:02:58.2]} 9... Nxf6
{[%clk 0:02:59.1]} 10. O-O {[%clk 0:02:57.4]} 10... Bd6 {[%clk 0:02:58.4]} 11.
Nf3 {[%clk 0:02:58.1]} 11... O-O {[%clk 0:02:58.2]} 12. Bf4 {[%clk 0:02:58.6]}
12... Bxf4 {[%clk 0:02:50.4]} 13. Nxf4 {[%clk 0:02:59.5]} 13... Ne4 {[%clk
0:02:45]} 14. Qc1 {[%clk 0:03:00.1]} 14... Qf6 {[%clk 0:02:25.8]} 15. Ne2 {[%clk
0:02:54.5]} 15... Bd7 {[%clk 0:02:14.2]} 16. Qe3 {[%clk 0:02:33.9]} 16... Nd6
{[%clk 0:01:50.7]} 17. Rac1 {[%clk 0:02:16.3]} 17... Rae8 {[%clk 0:01:27]} 18.
Ne5 {[%clk 0:02:11]} 18... Re7 {[%clk 0:00:52.1]} 19. Bb1 {[%clk 0:00:53.9]}
19... Nf5 {[%clk 0:00:48.7]} 20. Bxf5 {[%clk 0:00:53.2]} 20... exf5 {[%clk
0:00:48.4]} 21. Nxd7 {[%clk 0:00:53.8]} 21... Rxd7 {[%clk 0:00:46.9]} 22. Rfd1
{[%clk 0:00:43.7]} 22... f4 {[%clk 0:00:41]} 23. Qf3 {[%clk 0:00:43.9]} 23...
Kh8 {[%clk 0:00:29.3]} 24. Rc5 {[%clk 0:00:44]} 24... Ne7 {[%clk 0:00:21.6]} 25.
Rdc1 {[%clk 0:00:31.6]} 25... Qd6 {[%clk 0:00:21]} 26. h3 {[%clk 0:00:28.1]}
26... Ng6 {[%clk 0:00:17.5]} 27. R1c2 {[%clk 0:00:19.7]} 27... b6 {[%clk
0:00:17.3]} 28. Rc6 {[%clk 0:00:19.5]} 28... Qe7 {[%clk 0:00:16.6]} 29. Qh5
{[%clk 0:00:17.8]} 29... Qf7 {[%clk 0:00:08.9]} 30. Qf3 {[%clk 0:00:14.6]} 30...
Re7 {[%clk 0:00:08.7]} 31. Kh1 {[%clk 0:00:13.8]} 31... Rfe8 {[%clk 0:00:09.2]}
32. Ng1 {[%clk 0:00:12.5]} 32... Nh4 {[%clk 0:00:09]} 33. Qg4 {[%clk 0:00:11.4]}
33... Ng6 {[%clk 0:00:08.6]} 34. Rc8 {[%clk 0:00:11.9]} 34... h6 {[%clk
0:00:07.7]} 35. h4 {[%clk 0:00:10.4]} 35... Kh7 {[%clk 0:00:07.6]} 36. h5 {[%clk
0:00:10.6]} 36... Nf8 {[%clk 0:00:06.9]} 37. Nf3 {[%clk 0:00:09]} 37... Ne6
{[%clk 0:00:06.7]} 38. Ne5 {[%clk 0:00:08.4]} 38... Qf6 {[%clk 0:00:06.5]} 39.
Qg6+ {[%clk 0:00:03.9]} 39... Qxg6 {[%clk 0:00:06.3]} 40. hxg6+ {[%clk
0:00:04.8]} 40... Kg8 {[%clk 0:00:06.1]} 41. Rxe8+ {[%clk 0:00:02.7]} 41... Rxe8
{[%clk 0:00:07]} 42. Rd2 {[%clk 0:00:02.7]} 42... Rc8 {[%clk 0:00:06.6]} 43. Kh2
{[%clk 0:00:02.4]} 43... Kf8 {[%clk 0:00:06.5]} 44. Kh3 {[%clk 0:00:02.6]} 44...
Ke7 {[%clk 0:00:07.1]} 45. Kg4 {[%clk 0:00:02.9]} 45... Kf6 {[%clk 0:00:07.7]}
46. Kf3 {[%clk 0:00:01.4]} 46... Kf5 {[%clk 0:00:07.7]} 47. g4+ {[%clk
0:00:01.2]} 47... fxg3 {[%clk 0:00:07.8]} 48. fxg3 {[%clk 0:00:02.1]} 48... Ng5+
{[%clk 0:00:08.4]} 49. Ke3 {[%clk 0:00:02.3]} 49... Ne4 {[%clk 0:00:08.7]} 50.
Rg2 {[%clk 0:00:02.6]} 50... Ke6 {[%clk 0:00:08.9]} 51. Kd3 {[%clk 0:00:02.6]}
51... Rc1 {[%clk 0:00:09.2]} 52. g4 {[%clk 0:00:01.6]} 52... Rd1+ {[%clk
0:00:09.6]} 53. Ke3 {[%clk 0:00:01.7]} 53... Ra1 {[%clk 0:00:09.5]} 54. a3
{[%clk 0:00:01.6]} 54... Re1+ {[%clk 0:00:09.6]} 55. Kd3 {[%clk 0:00:02.1]}
55... Rd1+ {[%clk 0:00:10]} 56. Ke3 {[%clk 0:00:02.6]} 56... Nd6 {[%clk
0:00:10.4]} 57. Rf2 {[%clk 0:00:02.1]} 57... Re1+ {[%clk 0:00:10]} 58. Kd3
{[%clk 0:00:02.4]} 58... Re4 {[%clk 0:00:10.4]} 59. Rf7 {[%clk 0:00:02.7]} 59...
Nxf7 {[%clk 0:00:10.2]} 60. gxf7 {[%clk 0:00:02.7]} 60... Rf4 {[%clk 0:00:10.3]}
61. Ke3 {[%clk 0:00:01.9]} 61... Rxf7 {[%clk 0:00:10.3]} 62. Nxf7 {[%clk
0:00:02.1]} 62... Kxf7 {[%clk 0:00:11.2]} 63. Kf4 {[%clk 0:00:02.8]} 63... Kf6
{[%clk 0:00:11.7]} 64. b4 {[%clk 0:00:02.6]} 64... g6 {[%clk 0:00:11.6]} 65. a4
{[%clk 0:00:01.9]} 65... h5 {[%clk 0:00:11.7]} 0-1

[Event "Early-Titled-Tuesday-Blitz-January-23-2024"]
[Site "Chess.com"]
[Date "2024.01.23"]
[Round "7"]
[White "scarabee43"]
[Black "doctorcristian"]
[Result "1-0"]
[WhiteElo "2816"]
[BlackElo "2614"]
[TimeControl "180+1"]
[EndTime "9:18:50 PST"]
[Termination "scarabee43 won by resignation"]

1. Nf3 {[%clk 0:03:00.9]} 1... g6 {[%clk 0:02:55.2]} 2. c4 {[%clk 0:02:59.2]}
2... c5 {[%clk 0:02:54.1]} 3. Nc3 {[%clk 0:02:59.6]} 3... Bg7 {[%clk 0:02:54.3]}
4. e3 {[%clk 0:02:57]} 4... Bxc3 {[%clk 0:02:53.3]} 5. bxc3 {[%clk 0:02:56.5]}
5... b6 {[%clk 0:02:52]} 6. d4 {[%clk 0:02:56.6]} 6... d6 {[%clk 0:02:52.2]} 7.
e4 {[%clk 0:02:54.3]} 7... Bb7 {[%clk 0:02:49.7]} 8. Bd3 {[%clk 0:02:53.3]} 8...
Qc7 {[%clk 0:02:48.2]} 9. a4 {[%clk 0:02:47.5]} 9... Nc6 {[%clk 0:02:47.3]} 10.
Be3 {[%clk 0:02:45.6]} 10... e5 {[%clk 0:02:41.9]} 11. h4 {[%clk 0:02:40]} 11...
h6 {[%clk 0:02:41.1]} 12. Qd2 {[%clk 0:02:34.9]} 12... Na5 {[%clk 0:02:38]} 13.
Rb1 {[%clk 0:02:21.1]} 13... Ba6 {[%clk 0:02:27.2]} 14. Qe2 {[%clk 0:02:17.2]}
14... Ne7 {[%clk 0:02:26.3]} 15. Nd2 {[%clk 0:02:16.2]} 15... O-O-O {[%clk
0:02:20.9]} 16. h5 {[%clk 0:02:12.6]} 16... g5 {[%clk 0:02:20.5]} 17. Rh3 {[%clk
0:02:06.6]} 17... Rhf8 {[%clk 0:02:14.5]} 18. Rf3 {[%clk 0:02:06.4]} 18... f6
{[%clk 0:02:14.3]} 19. Rh3 {[%clk 0:01:57.7]} 19... Kb8 {[%clk 0:02:12.3]} 20.
g3 {[%clk 0:01:57.7]} 20... Bc8 {[%clk 0:02:08.2]} 21. Rh2 {[%clk 0:01:55]}
21... Bd7 {[%clk 0:02:08.3]} 22. f4 {[%clk 0:01:50.7]} 22... Ka8 {[%clk
0:02:01.9]} 23. Rf2 {[%clk 0:01:49.4]} 23... Qc8 {[%clk 0:01:59.9]} 24. Qf1
{[%clk 0:01:36.6]} 24... Nec6 {[%clk 0:01:47.2]} 25. d5 {[%clk 0:01:28]} 25...
Ne7 {[%clk 0:01:30.7]} 26. Nb3 {[%clk 0:01:22]} 26... Qc7 {[%clk 0:01:21.7]} 27.
fxg5 {[%clk 0:01:13.3]} 27... hxg5 {[%clk 0:01:21]} 28. Nxa5 {[%clk 0:01:11.9]}
28... bxa5 {[%clk 0:01:20.2]} 29. Rxf6 {[%clk 0:01:12.5]} 29... Rh8 {[%clk
0:01:04.7]} 30. Bxg5 {[%clk 0:00:55.8]} 30... Rxh5 {[%clk 0:01:04.2]} 31. Bh4
{[%clk 0:00:53.7]} 31... Nc8 {[%clk 0:00:53.4]} 32. Rf8 {[%clk 0:00:47.6]} 32...
Rxf8 {[%clk 0:00:46.9]} 33. Qxf8 {[%clk 0:00:47.6]} 33... Bxa4 {[%clk
0:00:41.1]} 34. Be2 {[%clk 0:00:37.1]} 34... Rh7 {[%clk 0:00:36.7]} 35. Bg4
{[%clk 0:00:37.3]} 35... Bd7 {[%clk 0:00:35.9]} 36. Bd8 {[%clk 0:00:36.2]} 36...
Bxg4 {[%clk 0:00:31.2]} 37. Bxc7 {[%clk 0:00:35.7]} 37... Rxc7 {[%clk
0:00:31.3]} 38. Kd2 {[%clk 0:00:31.5]} 38... a4 {[%clk 0:00:30.4]} 39. Ra1
{[%clk 0:00:29.7]} 39... Bd7 {[%clk 0:00:28.8]} 40. Qd8 {[%clk 0:00:29.3]} 40...
Rb7 {[%clk 0:00:28.6]} 41. g4 {[%clk 0:00:24.8]} 41... Bxg4 {[%clk 0:00:26.7]}
42. Rxa4 {[%clk 0:00:24.8]} 42... Kb8 {[%clk 0:00:26.8]} 43. Ra6 {[%clk
0:00:24.5]} 43... Rd7 {[%clk 0:00:21.8]} 44. Qg5 {[%clk 0:00:22.9]} 44... Bh3
{[%clk 0:00:21]} 45. Qg3 {[%clk 0:00:19.3]} 45... Bf1 {[%clk 0:00:20.4]} 46. Rc6
{[%clk 0:00:18.4]} 46... Bxc4 {[%clk 0:00:17]} 47. Qg8 {[%clk 0:00:18.5]} 47...
Rc7 {[%clk 0:00:16.3]} 48. Rxd6 {[%clk 0:00:19.1]} 48... Bb5 {[%clk 0:00:14.8]}
49. Rf6 {[%clk 0:00:18]} 49... Kb7 {[%clk 0:00:14.4]} 50. Qe6 {[%clk 0:00:17.4]}
50... Rd7 {[%clk 0:00:13.4]} 51. Qxe5 {[%clk 0:00:17.1]} 51... a5 {[%clk
0:00:12.8]} 52. Kc2 {[%clk 0:00:16.9]} 52... a4 {[%clk 0:00:13.1]} 53. Kb2
{[%clk 0:00:16.1]} 53... Ka7 {[%clk 0:00:13.6]} 54. d6 {[%clk 0:00:15.3]} 54...
Bc4 {[%clk 0:00:13.4]} 55. Qxc5+ {[%clk 0:00:15.7]} 55... Nb6 {[%clk 0:00:14.1]}
56. e5 {[%clk 0:00:15.5]} 56... Rb7 {[%clk 0:00:13.9]} 57. e6 {[%clk 0:00:15.9]}
57... Ka6 {[%clk 0:00:13.2]} 58. Ka1 {[%clk 0:00:15.6]} 58... a3 {[%clk
0:00:12.9]} 59. Qxa3+ {[%clk 0:00:15.2]} 59... Kb5 {[%clk 0:00:12.7]} 60. Qb4+
{[%clk 0:00:15.4]} 60... Kc6 {[%clk 0:00:13.1]} 61. d7 {[%clk 0:00:15.1]} 61...
Ra7+ {[%clk 0:00:13.1]} 62. Kb1 {[%clk 0:00:15.3]} 62... Bd3+ {[%clk 0:00:13.5]}
63. Kc1 {[%clk 0:00:15.8]} 63... Nd5 {[%clk 0:00:13.2]} 64. Qd4 {[%clk
0:00:14.1]} 64... Ra1+ {[%clk 0:00:09.9]} 65. Kd2 {[%clk 0:00:13.8]} 65... Ba6
{[%clk 0:00:09.4]} 66. d8=Q {[%clk 0:00:13.3]} 66... Ra2+ {[%clk 0:00:10.3]} 67.
Kc1 {[%clk 0:00:13.4]} 67... Ra1+ {[%clk 0:00:10.2]} 68. Kb2 {[%clk 0:00:13.9]}
68... Ra5 {[%clk 0:00:09.7]} 69. Qxa5 {[%clk 0:00:13.3]} 1-0

[Event "Early-Titled-Tuesday-Blitz-January-23-2024"]
[Site "Chess.com"]
[Date "2024.01.23"]
[Round "7"]
[White "diamonds13"]
[Black "VinzentSpitzl"]
[Result "0-1"]
[WhiteElo "2343"]
[BlackElo "2527"]
[TimeControl "180+1"]
[EndTime "9:18:50 PST"]
[Termination "VinzentSpitzl won by resignation"]

1. d4 {[%clk 0:02:59.6]} 1... Nf6 {[%clk 0:02:59.6]} 2. c4 {[%clk 0:02:59.3]}
2... e6 {[%clk 0:03:00.2]} 3. Nc3 {[%clk 0:02:58.3]} 3... d5 {[%clk 0:03:00.8]}
4. cxd5 {[%clk 0:02:57.9]} 4... exd5 {[%clk 0:03:00.7]} 5. Bg5 {[%clk
0:02:58.4]} 5... Be7 {[%clk 0:03:01.2]} 6. e3 {[%clk 0:02:58.8]} 6... h6 {[%clk
0:02:59.4]} 7. Bh4 {[%clk 0:02:58.2]} 7... O-O {[%clk 0:02:59.4]} 8. Bd3 {[%clk
0:02:58.8]} 8... c6 {[%clk 0:02:58.7]} 9. f3 {[%clk 0:02:59.2]} 9... Re8 {[%clk
0:02:55.1]} 10. Nge2 {[%clk 0:02:59.2]} 10... c5 {[%clk 0:02:51.9]} 11. Bf2
{[%clk 0:02:55.7]} 11... Nc6 {[%clk 0:02:51]} 12. O-O {[%clk 0:02:55.1]} 12...
Be6 {[%clk 0:02:41.4]} 13. Rc1 {[%clk 0:02:54.7]} 13... cxd4 {[%clk 0:02:39.7]}
14. exd4 {[%clk 0:02:54.2]} 14... Rc8 {[%clk 0:02:37.8]} 15. a3 {[%clk
0:02:53.7]} 15... Qd7 {[%clk 0:02:32.1]} 16. Na4 {[%clk 0:02:47.6]} 16... Bf5
{[%clk 0:02:25.5]} 17. Nc5 {[%clk 0:02:44.6]} 17... Bxc5 {[%clk 0:02:25.2]} 18.
Rxc5 {[%clk 0:02:40]} 18... Bxd3 {[%clk 0:02:19.7]} 19. Qxd3 {[%clk 0:02:39.3]}
19... Ne7 {[%clk 0:01:49.9]} 20. Bh4 {[%clk 0:02:27.2]} 20... Qf5 {[%clk
0:01:32.6]} 21. Qd2 {[%clk 0:02:11.6]} 21... Rxc5 {[%clk 0:01:26.3]} 22. dxc5
{[%clk 0:02:11.3]} 22... Nc6 {[%clk 0:01:26.7]} 23. b4 {[%clk 0:02:06.1]} 23...
Qe5 {[%clk 0:01:23.8]} 24. Nc1 {[%clk 0:01:54.3]} 24... Qe3+ {[%clk 0:01:17.2]}
25. Qxe3 {[%clk 0:01:53.9]} 25... Rxe3 {[%clk 0:01:18.1]} 26. b5 {[%clk
0:01:53.2]} 26... Ne5 {[%clk 0:00:58.7]} 27. a4 {[%clk 0:01:49.6]} 27... Nfd7
{[%clk 0:00:53.9]} 28. Bf2 {[%clk 0:01:42.8]} 28... Rc3 {[%clk 0:00:53.9]} 29.
Ne2 {[%clk 0:01:42.8]} 29... Rc2 {[%clk 0:00:46.7]} 30. c6 {[%clk 0:01:37.2]}
30... bxc6 {[%clk 0:00:45.2]} 31. Nd4 {[%clk 0:01:37]} 31... Rc4 {[%clk
0:00:43.4]} 32. bxc6 {[%clk 0:01:23.2]} 32... Nxc6 {[%clk 0:00:42.9]} 33. Nxc6
{[%clk 0:01:23.3]} 33... Rxc6 {[%clk 0:00:42.7]} 34. Rb1 {[%clk 0:01:16.6]}
34... Ra6 {[%clk 0:00:32.6]} 35. Rb4 {[%clk 0:01:13.9]} 35... Nb6 {[%clk
0:00:31.4]} 36. Bxb6 {[%clk 0:01:09.9]} 36... Rxb6 {[%clk 0:00:31.5]} 37. Rd4
{[%clk 0:01:09.8]} 37... Rd6 {[%clk 0:00:31.4]} 38. Kf2 {[%clk 0:01:08.5]} 38...
Kf8 {[%clk 0:00:31.5]} 39. Ke3 {[%clk 0:01:08.5]} 39... Ke7 {[%clk 0:00:32.1]}
40. Rb4 {[%clk 0:01:07]} 40... Ke6 {[%clk 0:00:28.9]} 41. Rb7 {[%clk 0:01:05.5]}
41... Ra6 {[%clk 0:00:27.4]} 42. Rb4 {[%clk 0:01:00.7]} 42... Rc6 {[%clk
0:00:26.6]} 43. Kd3 {[%clk 0:00:58.8]} 43... g5 {[%clk 0:00:24.7]} 44. h4 {[%clk
0:00:49.7]} 44... f6 {[%clk 0:00:23.5]} 45. hxg5 {[%clk 0:00:49.8]} 45... hxg5
{[%clk 0:00:23.3]} 46. Rb8 {[%clk 0:00:49.3]} 46... Rc4 {[%clk 0:00:20.2]} 47.
a5 {[%clk 0:00:42.6]} 47... Rc5 {[%clk 0:00:20.2]} 48. Re8+ {[%clk 0:00:40.2]}
48... Kd7 {[%clk 0:00:19.9]} 49. Rf8 {[%clk 0:00:38.9]} 49... Ke7 {[%clk
0:00:19.9]} 50. Rh8 {[%clk 0:00:32.9]} 50... Rxa5 {[%clk 0:00:19.8]} 51. Kd4
{[%clk 0:00:33.4]} 51... Ke6 {[%clk 0:00:19]} 52. Re8+ {[%clk 0:00:33.3]} 52...
Kd7 {[%clk 0:00:19.4]} 53. Rf8 {[%clk 0:00:33.1]} 53... Ke7 {[%clk 0:00:18.7]}
54. Rh8 {[%clk 0:00:32.7]} 54... Ke6 {[%clk 0:00:15]} 55. g4 {[%clk 0:00:30.3]}
55... Ra4+ {[%clk 0:00:14.7]} 56. Ke3 {[%clk 0:00:27.4]} 56... Ra3+ {[%clk
0:00:13.8]} 57. Kd4 {[%clk 0:00:27.5]} 57... Rxf3 {[%clk 0:00:13]} 58. Re8+
{[%clk 0:00:26.1]} 58... Kf7 {[%clk 0:00:12.8]} 59. Ra8 {[%clk 0:00:25.8]} 59...
Rf4+ {[%clk 0:00:12.6]} 60. Kxd5 {[%clk 0:00:26.3]} 60... Rxg4 {[%clk 0:00:13]}
61. Rxa7+ {[%clk 0:00:27]} 61... Kg6 {[%clk 0:00:13.4]} 62. Ke6 {[%clk
0:00:27.7]} 62... Rf4 {[%clk 0:00:13.6]} 63. Kd5 {[%clk 0:00:28.4]} 63... g4
{[%clk 0:00:13.9]} 64. Ra8 {[%clk 0:00:27.8]} 64... Kf5 {[%clk 0:00:13.3]} 65.
Rg8 {[%clk 0:00:27.4]} 65... Rf3 {[%clk 0:00:13.4]} 66. Kd4 {[%clk 0:00:27]}
66... Kf4 {[%clk 0:00:13.7]} 67. Rg6 {[%clk 0:00:26.8]} 67... f5 {[%clk
0:00:14.1]} 68. Rg7 {[%clk 0:00:27.3]} 68... g3 {[%clk 0:00:14.3]} 69. Rf7
{[%clk 0:00:26]} 69... Rf2 {[%clk 0:00:14.5]} 70. Rg7 {[%clk 0:00:26.6]} 70...
Kf3 {[%clk 0:00:14.5]} 71. Kd3 {[%clk 0:00:25.5]} 71... f4 {[%clk 0:00:14.8]}
0-1

[Event "Early-Titled-Tuesday-Blitz-January-23-2024"]
[Site "Chess.com"]
[Date "2024.01.23"]
[Round "7"]
[White "Happy1712Drummer"]
[Black "itsdsyr"]
[Result "1-0"]
[WhiteElo "2442"]
[BlackElo "2248"]
[TimeControl "180+1"]
[EndTime "9:18:56 PST"]
[Termination "Happy1712Drummer won on time"]

1. e4 {[%clk 0:03:00.9]} 1... e5 {[%clk 0:02:58.9]} 2. Nf3 {[%clk 0:03:01.1]}
2... Nc6 {[%clk 0:02:58.4]} 3. Nc3 {[%clk 0:03:01.6]} 3... Nf6 {[%clk
0:02:57.7]} 4. d4 {[%clk 0:03:01.8]} 4... exd4 {[%clk 0:02:56.9]} 5. Nd5 {[%clk
0:03:02.1]} 5... h6 {[%clk 0:02:13.6]} 6. Bf4 {[%clk 0:02:52.5]} 6... d6 {[%clk
0:02:12.6]} 7. Nxd4 {[%clk 0:02:51.1]} 7... Bd7 {[%clk 0:01:58.9]} 8. Nc3 {[%clk
0:02:48]} 8... Be7 {[%clk 0:01:54.8]} 9. Qd2 {[%clk 0:02:47.9]} 9... O-O {[%clk
0:01:50.5]} 10. O-O-O {[%clk 0:02:47.8]} 10... a6 {[%clk 0:01:49.8]} 11. f3
{[%clk 0:02:47.7]} 11... b5 {[%clk 0:01:47.1]} 12. g4 {[%clk 0:02:47.4]} 12...
Ne5 {[%clk 0:01:31]} 13. Be2 {[%clk 0:02:20.8]} 13... c5 {[%clk 0:01:11]} 14.
Nf5 {[%clk 0:02:19.5]} 14... Bxf5 {[%clk 0:01:09.9]} 15. gxf5 {[%clk 0:02:20.4]}
15... Kh7 {[%clk 0:01:03.2]} 16. Rhg1 {[%clk 0:02:15.1]} 16... Rg8 {[%clk
0:00:57.6]} 17. Kb1 {[%clk 0:01:37.7]} 17... Qa5 {[%clk 0:00:50.4]} 18. Nd5
{[%clk 0:01:13.9]} 18... Qxd2 {[%clk 0:00:49.2]} 19. Rxd2 {[%clk 0:01:06.5]}
19... Nxd5 {[%clk 0:00:47.8]} 20. Rxd5 {[%clk 0:01:07.4]} 20... f6 {[%clk
0:00:46.9]} 21. Bxe5 {[%clk 0:00:34.4]} 21... fxe5 {[%clk 0:00:43.1]} 22. Rg6
{[%clk 0:00:35]} 22... Rgf8 {[%clk 0:00:37.6]} 23. Re6 {[%clk 0:00:33.2]} 23...
Ra7 {[%clk 0:00:34.1]} 24. b3 {[%clk 0:00:18.3]} 24... Rf6 {[%clk 0:00:33.8]}
25. Kb2 {[%clk 0:00:15.1]} 25... Rxe6 {[%clk 0:00:32.4]} 26. fxe6 {[%clk
0:00:16]} 26... g5 {[%clk 0:00:31.8]} 27. a4 {[%clk 0:00:15.6]} 27... b4 {[%clk
0:00:30.2]} 28. a5 {[%clk 0:00:12.8]} 28... Kg7 {[%clk 0:00:29.7]} 29. Rd1
{[%clk 0:00:11.5]} 29... Kf6 {[%clk 0:00:29.9]} 30. Bc4 {[%clk 0:00:11.8]} 30...
h5 {[%clk 0:00:25.5]} 31. c3 {[%clk 0:00:11.5]} 31... Ra8 {[%clk 0:00:21.2]} 32.
cxb4 {[%clk 0:00:11.4]} 32... cxb4 {[%clk 0:00:21.1]} 33. Rg1 {[%clk 0:00:09.8]}
33... Bd8 {[%clk 0:00:17.3]} 34. Rd1 {[%clk 0:00:08.1]} 34... Be7 {[%clk
0:00:15.8]} 35. Kc2 {[%clk 0:00:07.1]} 35... Rc8 {[%clk 0:00:15.7]} 36. Rd5
{[%clk 0:00:07.1]} 36... Ra8 {[%clk 0:00:12.1]} 37. Kd2 {[%clk 0:00:07.3]} 37...
g4 {[%clk 0:00:12]} 38. fxg4 {[%clk 0:00:06.8]} 38... hxg4 {[%clk 0:00:12.9]}
39. Ke2 {[%clk 0:00:07.1]} 39... Rh8 {[%clk 0:00:12.8]} 40. Bxa6 {[%clk
0:00:04.4]} 40... Rxh2+ {[%clk 0:00:12.7]} 41. Kf1 {[%clk 0:00:05]} 41... Kg5
{[%clk 0:00:09.8]} 42. Be2 {[%clk 0:00:04.2]} 42... g3 {[%clk 0:00:10.2]} 43.
Rd3 {[%clk 0:00:02.8]} 43... Kf4 {[%clk 0:00:07.7]} 44. Rf3+ {[%clk 0:00:02.2]}
44... Kxe4 {[%clk 0:00:07.6]} 45. Rxg3 {[%clk 0:00:02.8]} 45... Rh1+ {[%clk
0:00:05.3]} 46. Kf2 {[%clk 0:00:02.3]} 46... Ra1 {[%clk 0:00:06.1]} 47. a6
{[%clk 0:00:01.5]} 47... Kd5 {[%clk 0:00:05.1]} 48. Rg7 {[%clk 0:00:01.8]} 48...
Kxe6 {[%clk 0:00:05]} 49. Ke3 {[%clk 0:00:02.6]} 49... d5 {[%clk 0:00:04.5]} 50.
Bb5 {[%clk 0:00:02.2]} 50... Bc5+ {[%clk 0:00:04.7]} 51. Kd3 {[%clk 0:00:02.1]}
51... Ra3 {[%clk 0:00:04.4]} 52. Rg6+ {[%clk 0:00:02]} 52... Kf5 {[%clk
0:00:04.1]} 53. Rc6 {[%clk 0:00:02.1]} 53... Rxb3+ {[%clk 0:00:02.5]} 54. Ke2
{[%clk 0:00:02.7]} 54... Rb2+ {[%clk 0:00:01.2]} 55. Kd3 {[%clk 0:00:02.7]} 1-0